{"text_format":"3","workbook":"xlsx","n_sheets":3,"sheets":["Dados de cliente potenciais","Vendas Previstas ","Previsão mensal ponderada"],"not_rendered":{"charts":1,"images":2,"defined_names":9},"read":"whole","date_system":"1900"}

{"sheet":"Dados de cliente potenciais","index":0,"n_rows":10,"n_cols":10,"rows_kept":10,"merged":[[2,1,2,2],[3,4,3,8]]}
[]
[]
[null,"Rastreador detalhado de clientes em potencial"]
[null,{"$f":"TODAY()","v":"2022-06-20"}]
[null,"Nome da empresa\t\t\t\t\t\t\t\t\t\t",{"$nulls":7},"CONFIDENCIAL"]
[null,"Nome do cliente em potencial","Contato do cliente em potencial","Cliente em potencial \nFonte","Cliente em potencial \nRegião","Cliente em potencial \nTipo","Possível oportunidade","Probabilidade \nde venda","Previsão \nFechada em","Ponderada \nPrevisão"]
[null,"Adatum Corporation",null,"Site","Norte","Estratégico",{"v":300000,"d":"R$ 300,000.00"},{"v":0.9,"d":"90%"},"Janeiro",{"$f":"IFERROR(IF(Dados_de_cliente_potenciais[[#This Row],[Probabilidade \nde venda]]<>\"\",Dados_de_cliente_potenciais[[#This Row],[Probabilidade \nde venda]]*Dados_de_cliente_potenciais[[#This Row],[Possível oportunidade]],\"\"),\"\")","v":{"v":270000,"d":"R$ 270,000.00"}}]
[null,"Adventure Works",null,"Eventos de rede profissional","Sul","Estratégico",{"v":200000,"d":"R$ 200,000.00"},{"v":0.1,"d":"10%"},"Fevereiro",{"$f":"IFERROR(IF(Dados_de_cliente_potenciais[[#This Row],[Probabilidade \nde venda]]<>\"\",Dados_de_cliente_potenciais[[#This Row],[Probabilidade \nde venda]]*Dados_de_cliente_potenciais[[#This Row],[Possível oportunidade]],\"\"),\"\")","v":{"v":20000,"d":"R$ 20,000.00"}}]
[null,"Alpine Ski House",null,"Eventos de rede profissional","Norte","Tático",{"v":100000,"d":"R$ 100,000.00"},{"v":0.2,"d":"20%"},"Março",{"$f":"IFERROR(IF(Dados_de_cliente_potenciais[[#This Row],[Probabilidade \nde venda]]<>\"\",Dados_de_cliente_potenciais[[#This Row],[Probabilidade \nde venda]]*Dados_de_cliente_potenciais[[#This Row],[Possível oportunidade]],\"\"),\"\")","v":{"v":20000,"d":"R$ 20,000.00"}}]
[null,"Total",{"$nulls":4},{"$f":"SUBTOTAL(109,Dados_de_cliente_potenciais[Possível oportunidade])","v":{"v":600000,"d":"R$ 600,000.00"}},null,null,{"$f":"SUBTOTAL(109,Dados_de_cliente_potenciais[Ponderada \nPrevisão])","v":{"v":310000,"d":"R$ 310,000.00"}}]

{"sheet":"Vendas Previstas ","index":1,"n_rows":15,"n_cols":14,"rows_kept":15,"merged":[[0,5,0,9],[2,1,2,2],[4,12,4,13]]}
[]
[]
[null,"Vendas Previstas"]
[null,{"$f":"DataMonitor","v":"2022-06-20"}]
[null,{"$f":"'Dados de cliente potenciais'!B5:I5","v":"Nome da empresa\t\t\t\t\t\t\t\t\t\t"},{"$nulls":10},"CONFIDENCIAL"]
[null,"Nome do cliente em potencial","Janeiro \nPrevisão","Fevereiro \nPrevisão","Março \nPrevisão","Abril \nPrevisão","Maio \nPrevisão","Junho \nPrevisão","Julho\nPrevisão","Agosto \nPrevisão","Setembro \nPrevisão","Outubro \nPrevisão","Novembro \nPrevisão","Dezembro \nPrevisão"]
[null,{"$f":"IFERROR(IF(AND(Dados_de_cliente_potenciais[[#This Row],[Nome do cliente em potencial]] <> \"\", ROW(VendasPrevistas[Nome do cliente em potencial])<>ÚltimaEntrada),Dados_de_cliente_potenciais[Nome do cliente em potencial], \"\"),\"\")","v":"Adatum Corporation"},{"$f":"IFERROR(IF(Dados_de_cliente_potenciais[[#This Row],[Previsão \nFechada em]] <>\"\",IF(Dados_de_cliente_potenciais[[#This Row],[Previsão \nFechada em]]= \"Janeiro\",Dados_de_cliente_potenciais[Ponderada \nPrevisão],0),\"\"),\"\")","v":{"v":270000,"d":"R$ 270,000"}},{"$f":"IFERROR(IF(Dados_de_cliente_potenciais[[#This Row],[Previsão \nFechada em]] <>\"\",IF(Dados_de_cliente_potenciais[[#This Row],[Previsão \nFechada em]]= \"Fevereiro\",Dados_de_cliente_potenciais[Ponderada \nPrevisão],0),\"\"),\"\")","v":{"v":0,"d":"R$ 0"}},{"$f":"IFERROR(IF(Dados_de_cliente_potenciais[[#This Row],[Previsão \nFechada em]] <>\"\",IF(Dados_de_cliente_potenciais[[#This Row],[Previsão \nFechada em]]= \"Março\",Dados_de_cliente_potenciais[Ponderada \nPrevisão],0),\"\"),\"\")","v":{"v":0,"d":"R$ 0"}},{"$f":"IFERROR(IF(Dados_de_cliente_potenciais[[#This Row],[Previsão \nFechada em]] <>\"\",IF(Dados_de_cliente_potenciais[[#This Row],[Previsão \nFechada em]]= \"Abril\",Dados_de_cliente_potenciais[Ponderada \nPrevisão],0),\"\"),\"\")","v":{"v":0,"d":"R$ 0"}},{"$f":"IFERROR(IF(Dados_de_cliente_potenciais[[#This Row],[Previsão \nFechada em]] <>\"\",IF(Dados_de_cliente_potenciais[[#This Row],[Previsão \nFechada em]]= \"Maio\",Dados_de_cliente_potenciais[Ponderada \nPrevisão],0),\"\"),\"\")","v":{"v":0,"d":"R$ 0"}},{"$f":"IFERROR(IF(Dados_de_cliente_potenciais[[#This Row],[Previsão \nFechada em]] <>\"\",IF(Dados_de_cliente_potenciais[[#This Row],[Previsão \nFechada em]]= \"Junho\",Dados_de_cliente_potenciais[Ponderada \nPrevisão],0),\"\"),\"\")","v":{"v":0,"d":"R$ 0"}},{"$f":"IFERROR(IF(Dados_de_cliente_potenciais[[#This Row],[Previsão \nFechada em]] <>\"\",IF(Dados_de_cliente_potenciais[[#This Row],[Previsão \nFechada em]]= \"Julho\",Dados_de_cliente_potenciais[Ponderada \nPrevisão],0),\"\"),\"\")","v":{"v":0,"d":"R$ 0"}},{"$f":"IFERROR(IF(Dados_de_cliente_potenciais[[#This Row],[Previsão \nFechada em]] <>\"\",IF(Dados_de_cliente_potenciais[[#This Row],[Previsão \nFechada em]]= \"Agosto\",Dados_de_cliente_potenciais[Ponderada \nPrevisão],0),\"\"),\"\")","v":{"v":0,"d":"R$ 0"}},{"$f":"IFERROR(IF(Dados_de_cliente_potenciais[[#This Row],[Previsão \nFechada em]] <>\"\",IF(Dados_de_cliente_potenciais[[#This Row],[Previsão \nFechada em]]= \"Setembro\",Dados_de_cliente_potenciais[Ponderada \nPrevisão],0),\"\"),\"\")","v":{"v":0,"d":"R$ 0"}},{"$f":"IFERROR(IF(Dados_de_cliente_potenciais[[#This Row],[Previsão \nFechada em]] <>\"\",IF(Dados_de_cliente_potenciais[[#This Row],[Previsão \nFechada em]]= \"Outubro\",Dados_de_cliente_potenciais[Ponderada \nPrevisão],0),\"\"),\"\")","v":{"v":0,"d":"R$ 0"}},{"$f":"IFERROR(IF(Dados_de_cliente_potenciais[[#This Row],[Previsão \nFechada em]] <>\"\",IF(Dados_de_cliente_potenciais[[#This Row],[Previsão \nFechada em]]= \"Novembro\",Dados_de_cliente_potenciais[Ponderada \nPrevisão],0),\"\"),\"\")","v":{"v":0,"d":"R$ 0"}},{"$f":"IFERROR(IF(Dados_de_cliente_potenciais[[#This Row],[Previsão \nFechada em]] <>\"\",IF(Dados_de_cliente_potenciais[[#This Row],[Previsão \nFechada em]]= \"Dezembro\",Dados_de_cliente_potenciais[Ponderada \nPrevisão],0),\"\"),\"\")","v":{"v":0,"d":"R$ 0"}}]
[null,{"$f":"IFERROR(IF(AND(Dados_de_cliente_potenciais[[#This Row],[Nome do cliente em potencial]] <> \"\", ROW(VendasPrevistas[Nome do cliente em potencial])<>ÚltimaEntrada),Dados_de_cliente_potenciais[Nome do cliente em potencial], \"\"),\"\")","v":"Adventure Works"},{"$f":"IFERROR(IF(Dados_de_cliente_potenciais[[#This Row],[Previsão \nFechada em]] <>\"\",IF(Dados_de_cliente_potenciais[[#This Row],[Previsão \nFechada em]]= \"Janeiro\",Dados_de_cliente_potenciais[Ponderada \nPrevisão],0),\"\"),\"\")","v":{"v":0,"d":"R$ 0"}},{"$f":"IFERROR(IF(Dados_de_cliente_potenciais[[#This Row],[Previsão \nFechada em]] <>\"\",IF(Dados_de_cliente_potenciais[[#This Row],[Previsão \nFechada em]]= \"Fevereiro\",Dados_de_cliente_potenciais[Ponderada \nPrevisão],0),\"\"),\"\")","v":{"v":20000,"d":"R$ 20,000"}},{"$f":"IFERROR(IF(Dados_de_cliente_potenciais[[#This Row],[Previsão \nFechada em]] <>\"\",IF(Dados_de_cliente_potenciais[[#This Row],[Previsão \nFechada em]]= \"Março\",Dados_de_cliente_potenciais[Ponderada \nPrevisão],0),\"\"),\"\")","v":{"v":0,"d":"R$ 0"}},{"$f":"IFERROR(IF(Dados_de_cliente_potenciais[[#This Row],[Previsão \nFechada em]] <>\"\",IF(Dados_de_cliente_potenciais[[#This Row],[Previsão \nFechada em]]= \"Abril\",Dados_de_cliente_potenciais[Ponderada \nPrevisão],0),\"\"),\"\")","v":{"v":0,"d":"R$ 0"}},{"$f":"IFERROR(IF(Dados_de_cliente_potenciais[[#This Row],[Previsão \nFechada em]] <>\"\",IF(Dados_de_cliente_potenciais[[#This Row],[Previsão \nFechada em]]= \"Maio\",Dados_de_cliente_potenciais[Ponderada \nPrevisão],0),\"\"),\"\")","v":{"v":0,"d":"R$ 0"}},{"$f":"IFERROR(IF(Dados_de_cliente_potenciais[[#This Row],[Previsão \nFechada em]] <>\"\",IF(Dados_de_cliente_potenciais[[#This Row],[Previsão \nFechada em]]= \"Junho\",Dados_de_cliente_potenciais[Ponderada \nPrevisão],0),\"\"),\"\")","v":{"v":0,"d":"R$ 0"}},{"$f":"IFERROR(IF(Dados_de_cliente_potenciais[[#This Row],[Previsão \nFechada em]] <>\"\",IF(Dados_de_cliente_potenciais[[#This Row],[Previsão \nFechada em]]= \"Julho\",Dados_de_cliente_potenciais[Ponderada \nPrevisão],0),\"\"),\"\")","v":{"v":0,"d":"R$ 0"}},{"$f":"IFERROR(IF(Dados_de_cliente_potenciais[[#This Row],[Previsão \nFechada em]] <>\"\",IF(Dados_de_cliente_potenciais[[#This Row],[Previsão \nFechada em]]= \"Agosto\",Dados_de_cliente_potenciais[Ponderada \nPrevisão],0),\"\"),\"\")","v":{"v":0,"d":"R$ 0"}},{"$f":"IFERROR(IF(Dados_de_cliente_potenciais[[#This Row],[Previsão \nFechada em]] <>\"\",IF(Dados_de_cliente_potenciais[[#This Row],[Previsão \nFechada em]]= \"Setembro\",Dados_de_cliente_potenciais[Ponderada \nPrevisão],0),\"\"),\"\")","v":{"v":0,"d":"R$ 0"}},{"$f":"IFERROR(IF(Dados_de_cliente_potenciais[[#This Row],[Previsão \nFechada em]] <>\"\",IF(Dados_de_cliente_potenciais[[#This Row],[Previsão \nFechada em]]= \"Outubro\",Dados_de_cliente_potenciais[Ponderada \nPrevisão],0),\"\"),\"\")","v":{"v":0,"d":"R$ 0"}},{"$f":"IFERROR(IF(Dados_de_cliente_potenciais[[#This Row],[Previsão \nFechada em]] <>\"\",IF(Dados_de_cliente_potenciais[[#This Row],[Previsão \nFechada em]]= \"Novembro\",Dados_de_cliente_potenciais[Ponderada \nPrevisão],0),\"\"),\"\")","v":{"v":0,"d":"R$ 0"}},{"$f":"IFERROR(IF(Dados_de_cliente_potenciais[[#This Row],[Previsão \nFechada em]] <>\"\",IF(Dados_de_cliente_potenciais[[#This Row],[Previsão \nFechada em]]= \"Dezembro\",Dados_de_cliente_potenciais[Ponderada \nPrevisão],0),\"\"),\"\")","v":{"v":0,"d":"R$ 0"}}]
[null,{"$f":"IFERROR(IF(AND(Dados_de_cliente_potenciais[[#This Row],[Nome do cliente em potencial]] <> \"\", ROW(VendasPrevistas[Nome do cliente em potencial])<>ÚltimaEntrada),Dados_de_cliente_potenciais[Nome do cliente em potencial], \"\"),\"\")","v":"Alpine Ski House"},{"$f":"IFERROR(IF(Dados_de_cliente_potenciais[[#This Row],[Previsão \nFechada em]] <>\"\",IF(Dados_de_cliente_potenciais[[#This Row],[Previsão \nFechada em]]= \"Janeiro\",Dados_de_cliente_potenciais[Ponderada \nPrevisão],0),\"\"),\"\")","v":{"v":0,"d":"R$ 0"}},{"$f":"IFERROR(IF(Dados_de_cliente_potenciais[[#This Row],[Previsão \nFechada em]] <>\"\",IF(Dados_de_cliente_potenciais[[#This Row],[Previsão \nFechada em]]= \"Fevereiro\",Dados_de_cliente_potenciais[Ponderada \nPrevisão],0),\"\"),\"\")","v":{"v":0,"d":"R$ 0"}},{"$f":"IFERROR(IF(Dados_de_cliente_potenciais[[#This Row],[Previsão \nFechada em]] <>\"\",IF(Dados_de_cliente_potenciais[[#This Row],[Previsão \nFechada em]]= \"Março\",Dados_de_cliente_potenciais[Ponderada \nPrevisão],0),\"\"),\"\")","v":{"v":20000,"d":"R$ 20,000"}},{"$f":"IFERROR(IF(Dados_de_cliente_potenciais[[#This Row],[Previsão \nFechada em]] <>\"\",IF(Dados_de_cliente_potenciais[[#This Row],[Previsão \nFechada em]]= \"Abril\",Dados_de_cliente_potenciais[Ponderada \nPrevisão],0),\"\"),\"\")","v":{"v":0,"d":"R$ 0"}},{"$f":"IFERROR(IF(Dados_de_cliente_potenciais[[#This Row],[Previsão \nFechada em]] <>\"\",IF(Dados_de_cliente_potenciais[[#This Row],[Previsão \nFechada em]]= \"Maio\",Dados_de_cliente_potenciais[Ponderada \nPrevisão],0),\"\"),\"\")","v":{"v":0,"d":"R$ 0"}},{"$f":"IFERROR(IF(Dados_de_cliente_potenciais[[#This Row],[Previsão \nFechada em]] <>\"\",IF(Dados_de_cliente_potenciais[[#This Row],[Previsão \nFechada em]]= \"Junho\",Dados_de_cliente_potenciais[Ponderada \nPrevisão],0),\"\"),\"\")","v":{"v":0,"d":"R$ 0"}},{"$f":"IFERROR(IF(Dados_de_cliente_potenciais[[#This Row],[Previsão \nFechada em]] <>\"\",IF(Dados_de_cliente_potenciais[[#This Row],[Previsão \nFechada em]]= \"Julho\",Dados_de_cliente_potenciais[Ponderada \nPrevisão],0),\"\"),\"\")","v":{"v":0,"d":"R$ 0"}},{"$f":"IFERROR(IF(Dados_de_cliente_potenciais[[#This Row],[Previsão \nFechada em]] <>\"\",IF(Dados_de_cliente_potenciais[[#This Row],[Previsão \nFechada em]]= \"Agosto\",Dados_de_cliente_potenciais[Ponderada \nPrevisão],0),\"\"),\"\")","v":{"v":0,"d":"R$ 0"}},{"$f":"IFERROR(IF(Dados_de_cliente_potenciais[[#This Row],[Previsão \nFechada em]] <>\"\",IF(Dados_de_cliente_potenciais[[#This Row],[Previsão \nFechada em]]= \"Setembro\",Dados_de_cliente_potenciais[Ponderada \nPrevisão],0),\"\"),\"\")","v":{"v":0,"d":"R$ 0"}},{"$f":"IFERROR(IF(Dados_de_cliente_potenciais[[#This Row],[Previsão \nFechada em]] <>\"\",IF(Dados_de_cliente_potenciais[[#This Row],[Previsão \nFechada em]]= \"Outubro\",Dados_de_cliente_potenciais[Ponderada \nPrevisão],0),\"\"),\"\")","v":{"v":0,"d":"R$ 0"}},{"$f":"IFERROR(IF(Dados_de_cliente_potenciais[[#This Row],[Previsão \nFechada em]] <>\"\",IF(Dados_de_cliente_potenciais[[#This Row],[Previsão \nFechada em]]= \"Novembro\",Dados_de_cliente_potenciais[Ponderada \nPrevisão],0),\"\"),\"\")","v":{"v":0,"d":"R$ 0"}},{"$f":"IFERROR(IF(Dados_de_cliente_potenciais[[#This Row],[Previsão \nFechada em]] <>\"\",IF(Dados_de_cliente_potenciais[[#This Row],[Previsão \nFechada em]]= \"Dezembro\",Dados_de_cliente_potenciais[Ponderada \nPrevisão],0),\"\"),\"\")","v":{"v":0,"d":"R$ 0"}}]
[null,{"$f":"IFERROR(IF(AND(Dados_de_cliente_potenciais[[#This Row],[Nome do cliente em potencial]] <> \"\", ROW(VendasPrevistas[Nome do cliente em potencial])<>ÚltimaEntrada),Dados_de_cliente_potenciais[Nome do cliente em potencial], \"\"),\"\")","v":""},{"$f":"IFERROR(IF(Dados_de_cliente_potenciais[[#This Row],[Previsão \nFechada em]] <>\"\",IF(Dados_de_cliente_potenciais[[#This Row],[Previsão \nFechada em]]= \"Janeiro\",Dados_de_cliente_potenciais[Ponderada \nPrevisão],0),\"\"),\"\")","v":""},{"$f":"IFERROR(IF(Dados_de_cliente_potenciais[[#This Row],[Previsão \nFechada em]] <>\"\",IF(Dados_de_cliente_potenciais[[#This Row],[Previsão \nFechada em]]= \"Fevereiro\",Dados_de_cliente_potenciais[Ponderada \nPrevisão],0),\"\"),\"\")","v":""},{"$f":"IFERROR(IF(Dados_de_cliente_potenciais[[#This Row],[Previsão \nFechada em]] <>\"\",IF(Dados_de_cliente_potenciais[[#This Row],[Previsão \nFechada em]]= \"Março\",Dados_de_cliente_potenciais[Ponderada \nPrevisão],0),\"\"),\"\")","v":""},{"$f":"IFERROR(IF(Dados_de_cliente_potenciais[[#This Row],[Previsão \nFechada em]] <>\"\",IF(Dados_de_cliente_potenciais[[#This Row],[Previsão \nFechada em]]= \"Abril\",Dados_de_cliente_potenciais[Ponderada \nPrevisão],0),\"\"),\"\")","v":""},{"$f":"IFERROR(IF(Dados_de_cliente_potenciais[[#This Row],[Previsão \nFechada em]] <>\"\",IF(Dados_de_cliente_potenciais[[#This Row],[Previsão \nFechada em]]= \"Maio\",Dados_de_cliente_potenciais[Ponderada \nPrevisão],0),\"\"),\"\")","v":""},{"$f":"IFERROR(IF(Dados_de_cliente_potenciais[[#This Row],[Previsão \nFechada em]] <>\"\",IF(Dados_de_cliente_potenciais[[#This Row],[Previsão \nFechada em]]= \"Junho\",Dados_de_cliente_potenciais[Ponderada \nPrevisão],0),\"\"),\"\")","v":""},{"$f":"IFERROR(IF(Dados_de_cliente_potenciais[[#This Row],[Previsão \nFechada em]] <>\"\",IF(Dados_de_cliente_potenciais[[#This Row],[Previsão \nFechada em]]= \"Julho\",Dados_de_cliente_potenciais[Ponderada \nPrevisão],0),\"\"),\"\")","v":""},{"$f":"IFERROR(IF(Dados_de_cliente_potenciais[[#This Row],[Previsão \nFechada em]] <>\"\",IF(Dados_de_cliente_potenciais[[#This Row],[Previsão \nFechada em]]= \"Agosto\",Dados_de_cliente_potenciais[Ponderada \nPrevisão],0),\"\"),\"\")","v":""},{"$f":"IFERROR(IF(Dados_de_cliente_potenciais[[#This Row],[Previsão \nFechada em]] <>\"\",IF(Dados_de_cliente_potenciais[[#This Row],[Previsão \nFechada em]]= \"Setembro\",Dados_de_cliente_potenciais[Ponderada \nPrevisão],0),\"\"),\"\")","v":""},{"$f":"IFERROR(IF(Dados_de_cliente_potenciais[[#This Row],[Previsão \nFechada em]] <>\"\",IF(Dados_de_cliente_potenciais[[#This Row],[Previsão \nFechada em]]= \"Outubro\",Dados_de_cliente_potenciais[Ponderada \nPrevisão],0),\"\"),\"\")","v":""},{"$f":"IFERROR(IF(Dados_de_cliente_potenciais[[#This Row],[Previsão \nFechada em]] <>\"\",IF(Dados_de_cliente_potenciais[[#This Row],[Previsão \nFechada em]]= \"Novembro\",Dados_de_cliente_potenciais[Ponderada \nPrevisão],0),\"\"),\"\")","v":""},{"$f":"IFERROR(IF(Dados_de_cliente_potenciais[[#This Row],[Previsão \nFechada em]] <>\"\",IF(Dados_de_cliente_potenciais[[#This Row],[Previsão \nFechada em]]= \"Dezembro\",Dados_de_cliente_potenciais[Ponderada \nPrevisão],0),\"\"),\"\")","v":""}]
[null,{"$f":"IFERROR(IF(AND(Dados_de_cliente_potenciais[[#This Row],[Nome do cliente em potencial]] <> \"\", ROW(VendasPrevistas[Nome do cliente em potencial])<>ÚltimaEntrada),Dados_de_cliente_potenciais[Nome do cliente em potencial], \"\"),\"\")","v":""},{"$f":"IFERROR(IF(Dados_de_cliente_potenciais[[#This Row],[Previsão \nFechada em]] <>\"\",IF(Dados_de_cliente_potenciais[[#This Row],[Previsão \nFechada em]]= \"Janeiro\",Dados_de_cliente_potenciais[Ponderada \nPrevisão],0),\"\"),\"\")","v":""},{"$f":"IFERROR(IF(Dados_de_cliente_potenciais[[#This Row],[Previsão \nFechada em]] <>\"\",IF(Dados_de_cliente_potenciais[[#This Row],[Previsão \nFechada em]]= \"Fevereiro\",Dados_de_cliente_potenciais[Ponderada \nPrevisão],0),\"\"),\"\")","v":""},{"$f":"IFERROR(IF(Dados_de_cliente_potenciais[[#This Row],[Previsão \nFechada em]] <>\"\",IF(Dados_de_cliente_potenciais[[#This Row],[Previsão \nFechada em]]= \"Março\",Dados_de_cliente_potenciais[Ponderada \nPrevisão],0),\"\"),\"\")","v":""},{"$f":"IFERROR(IF(Dados_de_cliente_potenciais[[#This Row],[Previsão \nFechada em]] <>\"\",IF(Dados_de_cliente_potenciais[[#This Row],[Previsão \nFechada em]]= \"Abril\",Dados_de_cliente_potenciais[Ponderada \nPrevisão],0),\"\"),\"\")","v":""},{"$f":"IFERROR(IF(Dados_de_cliente_potenciais[[#This Row],[Previsão \nFechada em]] <>\"\",IF(Dados_de_cliente_potenciais[[#This Row],[Previsão \nFechada em]]= \"Maio\",Dados_de_cliente_potenciais[Ponderada \nPrevisão],0),\"\"),\"\")","v":""},{"$f":"IFERROR(IF(Dados_de_cliente_potenciais[[#This Row],[Previsão \nFechada em]] <>\"\",IF(Dados_de_cliente_potenciais[[#This Row],[Previsão \nFechada em]]= \"Junho\",Dados_de_cliente_potenciais[Ponderada \nPrevisão],0),\"\"),\"\")","v":""},{"$f":"IFERROR(IF(Dados_de_cliente_potenciais[[#This Row],[Previsão \nFechada em]] <>\"\",IF(Dados_de_cliente_potenciais[[#This Row],[Previsão \nFechada em]]= \"Julho\",Dados_de_cliente_potenciais[Ponderada \nPrevisão],0),\"\"),\"\")","v":""},{"$f":"IFERROR(IF(Dados_de_cliente_potenciais[[#This Row],[Previsão \nFechada em]] <>\"\",IF(Dados_de_cliente_potenciais[[#This Row],[Previsão \nFechada em]]= \"Agosto\",Dados_de_cliente_potenciais[Ponderada \nPrevisão],0),\"\"),\"\")","v":""},{"$f":"IFERROR(IF(Dados_de_cliente_potenciais[[#This Row],[Previsão \nFechada em]] <>\"\",IF(Dados_de_cliente_potenciais[[#This Row],[Previsão \nFechada em]]= \"Setembro\",Dados_de_cliente_potenciais[Ponderada \nPrevisão],0),\"\"),\"\")","v":""},{"$f":"IFERROR(IF(Dados_de_cliente_potenciais[[#This Row],[Previsão \nFechada em]] <>\"\",IF(Dados_de_cliente_potenciais[[#This Row],[Previsão \nFechada em]]= \"Outubro\",Dados_de_cliente_potenciais[Ponderada \nPrevisão],0),\"\"),\"\")","v":""},{"$f":"IFERROR(IF(Dados_de_cliente_potenciais[[#This Row],[Previsão \nFechada em]] <>\"\",IF(Dados_de_cliente_potenciais[[#This Row],[Previsão \nFechada em]]= \"Novembro\",Dados_de_cliente_potenciais[Ponderada \nPrevisão],0),\"\"),\"\")","v":""},{"$f":"IFERROR(IF(Dados_de_cliente_potenciais[[#This Row],[Previsão \nFechada em]] <>\"\",IF(Dados_de_cliente_potenciais[[#This Row],[Previsão \nFechada em]]= \"Dezembro\",Dados_de_cliente_potenciais[Ponderada \nPrevisão],0),\"\"),\"\")","v":""}]
[null,{"$f":"IFERROR(IF(AND(Dados_de_cliente_potenciais[[#This Row],[Nome do cliente em potencial]] <> \"\", ROW(VendasPrevistas[Nome do cliente em potencial])<>ÚltimaEntrada),Dados_de_cliente_potenciais[Nome do cliente em potencial], \"\"),\"\")","v":""},{"$f":"IFERROR(IF(Dados_de_cliente_potenciais[[#This Row],[Previsão \nFechada em]] <>\"\",IF(Dados_de_cliente_potenciais[[#This Row],[Previsão \nFechada em]]= \"Janeiro\",Dados_de_cliente_potenciais[Ponderada \nPrevisão],0),\"\"),\"\")","v":""},{"$f":"IFERROR(IF(Dados_de_cliente_potenciais[[#This Row],[Previsão \nFechada em]] <>\"\",IF(Dados_de_cliente_potenciais[[#This Row],[Previsão \nFechada em]]= \"Fevereiro\",Dados_de_cliente_potenciais[Ponderada \nPrevisão],0),\"\"),\"\")","v":""},{"$f":"IFERROR(IF(Dados_de_cliente_potenciais[[#This Row],[Previsão \nFechada em]] <>\"\",IF(Dados_de_cliente_potenciais[[#This Row],[Previsão \nFechada em]]= \"Março\",Dados_de_cliente_potenciais[Ponderada \nPrevisão],0),\"\"),\"\")","v":""},{"$f":"IFERROR(IF(Dados_de_cliente_potenciais[[#This Row],[Previsão \nFechada em]] <>\"\",IF(Dados_de_cliente_potenciais[[#This Row],[Previsão \nFechada em]]= \"Abril\",Dados_de_cliente_potenciais[Ponderada \nPrevisão],0),\"\"),\"\")","v":""},{"$f":"IFERROR(IF(Dados_de_cliente_potenciais[[#This Row],[Previsão \nFechada em]] <>\"\",IF(Dados_de_cliente_potenciais[[#This Row],[Previsão \nFechada em]]= \"Maio\",Dados_de_cliente_potenciais[Ponderada \nPrevisão],0),\"\"),\"\")","v":""},{"$f":"IFERROR(IF(Dados_de_cliente_potenciais[[#This Row],[Previsão \nFechada em]] <>\"\",IF(Dados_de_cliente_potenciais[[#This Row],[Previsão \nFechada em]]= \"Junho\",Dados_de_cliente_potenciais[Ponderada \nPrevisão],0),\"\"),\"\")","v":""},{"$f":"IFERROR(IF(Dados_de_cliente_potenciais[[#This Row],[Previsão \nFechada em]] <>\"\",IF(Dados_de_cliente_potenciais[[#This Row],[Previsão \nFechada em]]= \"Julho\",Dados_de_cliente_potenciais[Ponderada \nPrevisão],0),\"\"),\"\")","v":""},{"$f":"IFERROR(IF(Dados_de_cliente_potenciais[[#This Row],[Previsão \nFechada em]] <>\"\",IF(Dados_de_cliente_potenciais[[#This Row],[Previsão \nFechada em]]= \"Agosto\",Dados_de_cliente_potenciais[Ponderada \nPrevisão],0),\"\"),\"\")","v":""},{"$f":"IFERROR(IF(Dados_de_cliente_potenciais[[#This Row],[Previsão \nFechada em]] <>\"\",IF(Dados_de_cliente_potenciais[[#This Row],[Previsão \nFechada em]]= \"Setembro\",Dados_de_cliente_potenciais[Ponderada \nPrevisão],0),\"\"),\"\")","v":""},{"$f":"IFERROR(IF(Dados_de_cliente_potenciais[[#This Row],[Previsão \nFechada em]] <>\"\",IF(Dados_de_cliente_potenciais[[#This Row],[Previsão \nFechada em]]= \"Outubro\",Dados_de_cliente_potenciais[Ponderada \nPrevisão],0),\"\"),\"\")","v":""},{"$f":"IFERROR(IF(Dados_de_cliente_potenciais[[#This Row],[Previsão \nFechada em]] <>\"\",IF(Dados_de_cliente_potenciais[[#This Row],[Previsão \nFechada em]]= \"Novembro\",Dados_de_cliente_potenciais[Ponderada \nPrevisão],0),\"\"),\"\")","v":""},{"$f":"IFERROR(IF(Dados_de_cliente_potenciais[[#This Row],[Previsão \nFechada em]] <>\"\",IF(Dados_de_cliente_potenciais[[#This Row],[Previsão \nFechada em]]= \"Dezembro\",Dados_de_cliente_potenciais[Ponderada \nPrevisão],0),\"\"),\"\")","v":""}]
[null,{"$f":"IFERROR(IF(AND(Dados_de_cliente_potenciais[[#This Row],[Nome do cliente em potencial]] <> \"\", ROW(VendasPrevistas[Nome do cliente em potencial])<>ÚltimaEntrada),Dados_de_cliente_potenciais[Nome do cliente em potencial], \"\"),\"\")","v":""},{"$f":"IFERROR(IF(Dados_de_cliente_potenciais[[#This Row],[Previsão \nFechada em]] <>\"\",IF(Dados_de_cliente_potenciais[[#This Row],[Previsão \nFechada em]]= \"Janeiro\",Dados_de_cliente_potenciais[Ponderada \nPrevisão],0),\"\"),\"\")","v":""},{"$f":"IFERROR(IF(Dados_de_cliente_potenciais[[#This Row],[Previsão \nFechada em]] <>\"\",IF(Dados_de_cliente_potenciais[[#This Row],[Previsão \nFechada em]]= \"Fevereiro\",Dados_de_cliente_potenciais[Ponderada \nPrevisão],0),\"\"),\"\")","v":""},{"$f":"IFERROR(IF(Dados_de_cliente_potenciais[[#This Row],[Previsão \nFechada em]] <>\"\",IF(Dados_de_cliente_potenciais[[#This Row],[Previsão \nFechada em]]= \"Março\",Dados_de_cliente_potenciais[Ponderada \nPrevisão],0),\"\"),\"\")","v":""},{"$f":"IFERROR(IF(Dados_de_cliente_potenciais[[#This Row],[Previsão \nFechada em]] <>\"\",IF(Dados_de_cliente_potenciais[[#This Row],[Previsão \nFechada em]]= \"Abril\",Dados_de_cliente_potenciais[Ponderada \nPrevisão],0),\"\"),\"\")","v":""},{"$f":"IFERROR(IF(Dados_de_cliente_potenciais[[#This Row],[Previsão \nFechada em]] <>\"\",IF(Dados_de_cliente_potenciais[[#This Row],[Previsão \nFechada em]]= \"Maio\",Dados_de_cliente_potenciais[Ponderada \nPrevisão],0),\"\"),\"\")","v":""},{"$f":"IFERROR(IF(Dados_de_cliente_potenciais[[#This Row],[Previsão \nFechada em]] <>\"\",IF(Dados_de_cliente_potenciais[[#This Row],[Previsão \nFechada em]]= \"Junho\",Dados_de_cliente_potenciais[Ponderada \nPrevisão],0),\"\"),\"\")","v":""},{"$f":"IFERROR(IF(Dados_de_cliente_potenciais[[#This Row],[Previsão \nFechada em]] <>\"\",IF(Dados_de_cliente_potenciais[[#This Row],[Previsão \nFechada em]]= \"Julho\",Dados_de_cliente_potenciais[Ponderada \nPrevisão],0),\"\"),\"\")","v":""},{"$f":"IFERROR(IF(Dados_de_cliente_potenciais[[#This Row],[Previsão \nFechada em]] <>\"\",IF(Dados_de_cliente_potenciais[[#This Row],[Previsão \nFechada em]]= \"Agosto\",Dados_de_cliente_potenciais[Ponderada \nPrevisão],0),\"\"),\"\")","v":""},{"$f":"IFERROR(IF(Dados_de_cliente_potenciais[[#This Row],[Previsão \nFechada em]] <>\"\",IF(Dados_de_cliente_potenciais[[#This Row],[Previsão \nFechada em]]= \"Setembro\",Dados_de_cliente_potenciais[Ponderada \nPrevisão],0),\"\"),\"\")","v":""},{"$f":"IFERROR(IF(Dados_de_cliente_potenciais[[#This Row],[Previsão \nFechada em]] <>\"\",IF(Dados_de_cliente_potenciais[[#This Row],[Previsão \nFechada em]]= \"Outubro\",Dados_de_cliente_potenciais[Ponderada \nPrevisão],0),\"\"),\"\")","v":""},{"$f":"IFERROR(IF(Dados_de_cliente_potenciais[[#This Row],[Previsão \nFechada em]] <>\"\",IF(Dados_de_cliente_potenciais[[#This Row],[Previsão \nFechada em]]= \"Novembro\",Dados_de_cliente_potenciais[Ponderada \nPrevisão],0),\"\"),\"\")","v":""},{"$f":"IFERROR(IF(Dados_de_cliente_potenciais[[#This Row],[Previsão \nFechada em]] <>\"\",IF(Dados_de_cliente_potenciais[[#This Row],[Previsão \nFechada em]]= \"Dezembro\",Dados_de_cliente_potenciais[Ponderada \nPrevisão],0),\"\"),\"\")","v":""}]
[null,"Total",{"$f":"SUBTOTAL(109,VendasPrevistas[Janeiro \nPrevisão])","v":{"v":270000,"d":"R$ 270,000"}},{"$f":"SUBTOTAL(109,VendasPrevistas[Fevereiro \nPrevisão])","v":{"v":20000,"d":"R$ 20,000"}},{"$f":"SUBTOTAL(109,VendasPrevistas[Março \nPrevisão])","v":{"v":20000,"d":"R$ 20,000"}},{"$f":"SUBTOTAL(109,VendasPrevistas[Abril \nPrevisão])","v":{"v":0,"d":"R$ 0"}},{"$f":"SUBTOTAL(109,VendasPrevistas[Maio \nPrevisão])","v":{"v":0,"d":"R$ 0"}},{"$f":"SUBTOTAL(109,VendasPrevistas[Junho \nPrevisão])","v":{"v":0,"d":"R$ 0"}},{"$f":"SUBTOTAL(109,VendasPrevistas[Julho\nPrevisão])","v":{"v":0,"d":"R$ 0"}},{"$f":"SUBTOTAL(109,VendasPrevistas[Agosto \nPrevisão])","v":{"v":0,"d":"R$ 0"}},{"$f":"SUBTOTAL(109,VendasPrevistas[Setembro \nPrevisão])","v":{"v":0,"d":"R$ 0"}},{"$f":"SUBTOTAL(109,VendasPrevistas[Outubro \nPrevisão])","v":{"v":0,"d":"R$ 0"}},{"$f":"SUBTOTAL(109,VendasPrevistas[Novembro \nPrevisão])","v":{"v":0,"d":"R$ 0"}},{"$f":"SUBTOTAL(109,VendasPrevistas[Dezembro \nPrevisão])","v":{"v":0,"d":"R$ 0"}}]
[null,"Total Acumulado",{"$f":"C14","v":{"v":270000,"d":"R$ 270,000"}},{"$f":"C15+D14","v":{"v":290000,"d":"R$ 290,000"}},{"v":310000,"d":"R$ 310,000"},{"v":310000,"d":"R$ 310,000"},{"v":310000,"d":"R$ 310,000"},{"v":310000,"d":"R$ 310,000"},{"v":310000,"d":"R$ 310,000"},{"v":310000,"d":"R$ 310,000"},{"v":310000,"d":"R$ 310,000"},{"v":310000,"d":"R$ 310,000"},{"v":310000,"d":"R$ 310,000"},{"v":310000,"d":"R$ 310,000"}]

{"sheet":"Previsão mensal ponderada","index":2,"n_rows":3,"n_cols":2,"rows_kept":3,"merged":[[0,5,0,9]]}
[]
[]
[null,"Previsão mensal ponderada"]